fUST/lending_fUST_20240115
["ID","MTS","AMOUNT","RATE_DAILY","PERIOD"]
[311590345,1705257042226,-2921.82,0.00027397,2]
[311590346,1705257042235,-1479.7,0.00027397,2]
[311590347,1705257042244,-1676.05,0.00027397,2]
[311590348,1705257042254,-517.78557249,0.00027397,2]
[311590349,1705257042264,-553.3,0.00027397,2]
[311590350,1705257042274,-500.0,0.00027397,2]
[311590351,1705257042284,-253.57805257,0.00027397,2]
[311590352,1705257042297,-592.07,0.00027397,2]
[311590353,1705257042307,-500.0,0.00027397,2]
[311590354,1705257042316,-8636.67,0.00027397,2]
[311590355,1705257042327,-500.0,0.00027397,2]
[311590356,1705257042337,-163.58291309,0.00027397,2]
[311590357,1705257042346,-11593.8,0.00027397,2]
[311590358,1705257042356,-500.0,0.00027397,2]
[311590359,1705257042365,-533.9290065,0.00027397,2]
[311590360,1705257042374,-500.0,0.00027397,2]
[311590361,1705257042384,-500.0,0.00027397,2]
[311590362,1705257042394,-555.00352691,0.00027397,2]
[311590363,1705257042404,-500.49527847,0.00027397,2]
[311590364,1705257042414,-580.85,0.00027397,2]
[311590365,1705257042423,-4870.93,0.00027397,2]
[311590366,1705257042433,-500.0,0.00027397,2]
[311590367,1705257042442,-500.0,0.00027397,2]
[311590368,1705257042455,-287.6321039,0.00027397,2]
[311590369,1705257042464,-623.37,0.00027397,2]
[311590370,1705257042475,-500.0,0.00027397,2]
[311590371,1705257042484,-1689.66,0.00027397,2]
[311590372,1705257042494,-500.0,0.00027397,2]
[311590373,1705257042503,-500.0,0.00027397,2]
[311590375,1705257042513,-500.0,0.00027397,2]
[311590377,1705257042522,-1901.24,0.00027397,2]
[311590378,1705257042532,-3601.02,0.00027397,2]
[311590379,1705257042542,-500.0,0.00027397,2]
[311590380,1705257042551,-886.7,0.00027397,2]
[311590382,1705257042560,-500.0,0.00027397,2]
[311590383,1705257042570,-630.42,0.00027397,2]
[311590384,1705257042579,-500.0,0.00027397,2]
[311590389,1705257042588,-500.0,0.00027397,2]
[311590390,1705257042677,-500.0,0.00027397,2]
[311590391,1705257042686,-7395.6,0.00027397,2]
[311590392,1705257042698,-500.0,0.00027397,2]
[311590393,1705257042708,-501.04927739,0.00027397,2]
[311590394,1705257042718,-225.69017351,0.00027397,2]
[311590395,1705257042727,-500.0,0.00027397,2]
[311590397,1705257042736,-33592.72,0.00027397,2]
[311590399,1705257042745,-500.0,0.00027397,2]
[311590400,1705257042754,-500.0,0.00027397,2]
[311590401,1705257042764,-500.0,0.00027397,2]
[311590402,1705257042773,-529.37,0.00027397,2]
[311590403,1705257042783,-585.23,0.00027397,2]
[311590404,1705257042792,-500.0,0.00027397,2]
[311590405,1705257042801,-500.0,0.00027397,2]
[311590406,1705257042811,-500.0,0.00027397,2]
[311590407,1705257042820,-500.0,0.00027397,2]
[311590408,1705257042829,-500.0,0.00027397,2]
[311590409,1705257042838,-573.57,0.00027397,2]
[311590410,1705257042847,-500.0,0.00027397,2]
[311590411,1705257042857,-1114.58,0.00027397,2]
[311590413,1705257042865,-525.25762534,0.00027397,2]
[311590415,1705257042874,-489.84944063,0.00027397,2]
[311590417,1705257042884,-161.62947205,0.00027397,2]
[311590419,1705257042892,-500.0,0.00027397,2]
[311590421,1705257042902,-500.0,0.00027397,2]
[311590423,1705257042910,-500.0,0.00027397,2]
[311590425,1705257042920,-18863.53,0.00027397,2]
[311590426,1705257042929,-500.0,0.00027397,2]
[311590428,1705257042938,-2203.22,0.00027397,2]
[311590430,1705257042947,-500.0,0.00027397,2]
[311590432,1705257042959,-500.0,0.00027397,2]
[311590434,1705257042968,-500.0,0.00027397,2]
[311590436,1705257042977,-500.0,0.00027397,2]
[311590438,1705257042986,-500.0,0.00027397,2]
[311590440,1705257042995,-500.0,0.00027397,2]
[311590442,1705257043004,-500.0,0.00027397,2]
[311590444,1705257043013,-500.0,0.00027397,2]
[311590446,1705257043023,-500.0,0.00027397,2]
[311590448,1705257043032,-500.0,0.00027397,2]
[311590450,1705257043041,-500.0,0.00027397,2]
[311590451,1705257043050,-218.24059673,0.00027397,2]
[311590453,1705257043059,-500.0,0.00027397,2]
[311590455,1705257043068,-1209.28,0.00027397,2]
[311590457,1705257043078,-500.0,0.00027397,2]
[311590459,1705257043087,-500.0,0.00027397,2]
[311590461,1705257043096,-500.0,0.00027397,2]
[311590463,1705257043105,-1687.72,0.00027397,2]
[311590465,1705257043114,-500.0,0.00027397,2]
[311590467,1705257043123,-504.46,0.00027397,2]
[311590469,1705257043132,-500.0,0.00027397,2]
[311590471,1705257043142,-500.0,0.00027397,2]
[311590472,1705257043151,-500.0,0.00027397,2]
[311590474,1705257043160,-500.0,0.00027397,2]
[311590476,1705257043170,-500.0,0.00027397,2]
[311590478,1705257043179,-500.0,0.00027397,2]
[311590480,1705257043188,-901.66,0.00027397,2]
[311590482,1705257043200,-8006.49,0.00027397,2]
[311590484,1705257043209,-500.0,0.00027397,2]
[311590486,1705257043218,-500.0,0.00027397,2]
[311590488,1705257043227,-839.57,0.00027397,2]
[311590490,1705257043236,-1000.0,0.00027397,2]
[311590492,1705257043245,-500.0,0.00027397,2]
[311590494,1705257043254,-500.0,0.00027397,2]
[311590496,1705257043263,-500.0,0.00027397,2]
[311590498,1705257043272,-500.0,0.00027397,2]
[311590499,1705257043281,-500.0,0.00027397,2]
[311590501,1705257043293,-209.81495602,0.00027397,2]
[311590503,1705257043302,-500.0,0.00027397,2]
[311590505,1705257043311,-500.0,0.00027397,2]
[311590507,1705257043320,-500.0,0.00027397,2]
[311590509,1705257043331,-500.0,0.00027397,2]
[311590511,1705257043341,-500.0,0.00027397,2]
[311590513,1705257043350,-1411.01,0.00027397,2]
[311590515,1705257043360,-500.0,0.00027397,2]
[311590517,1705257043370,-501.52822313,0.00027397,2]
[311590518,1705257043380,-500.0,0.00027397,2]
[311590519,1705257043390,-500.0,0.00027397,2]
[311590521,1705257043399,-1828.08,0.00027397,2]
[311590523,1705257043408,-500.0,0.00027397,2]
[311590525,1705257043418,-500.0,0.00027397,2]
[311590527,1705257043427,-500.0,0.00027397,2]
[311590529,1705257043436,-287.40897555,0.00027397,2]
[311590531,1705257043445,-500.0,0.00027397,2]
[311590533,1705257043456,-614.02729468,0.00027397,2]
[311590535,1705257043465,-500.0,0.00027397,2]
[311590537,1705257043474,-1201.24,0.00027397,2]
[311590539,1705257043483,-500.0,0.00027397,2]
[311590541,1705257043492,-500.0,0.00027397,2]
[311590543,1705257043501,-500.0,0.00027397,2]
[311590545,1705257043511,-500.0,0.00027397,2]
[311590547,1705257043520,-500.0,0.00027397,2]
[311590549,1705257043529,-500.0,0.00027397,2]
[311590551,1705257043538,-500.0,0.00027397,2]
[311590553,1705257043548,-500.0,0.00027397,2]
[311590554,1705257043557,-2000.0,0.000274,2]
[311590556,1705257043567,-2000.0,0.0002741,2]
[311590558,1705257043577,-2000.0,0.0002742,2]
[311590560,1705257043586,-2000.0,0.0002743,2]
[311590562,1705257043595,-3435.166419,0.0002744,2]
[311590564,1705257043604,-602.36,0.00027499,2]
[311590566,1705257043613,-500.0,0.00027499,2]
[311590568,1705257043622,-437.5727405,0.00027499,2]
[311590570,1705257043631,-500.0,0.00027499,2]
[311590572,1705257043640,-177.47927265,0.00027499,2]
[311590574,1705257043649,-482.95413341,0.00027499,2]
[311590576,1705257043658,-500.0,0.00027499,2]
[311590578,1705257043667,-493.05723006,0.00027499,2]
[311590580,1705257043676,-302.73089915,0.00027499,2]
[311590582,1705257043685,-167.62121297,0.00027499,2]
[311590584,1705257043694,-584.35584242,0.00027499,2]
[311590586,1705257043705,-42628.56385156,0.000275,2]
[311590588,1705257043714,-602.36,0.00027668,2]
[311590590,1705257043723,-469.94797818,0.00027669,2]
[311590592,1705257043732,-461.55285884,0.0002767,2]
[311590594,1705257043741,-602.36,0.0002767,2]
[311590596,1705257043751,-602.36,0.0002767,2]
[311590598,1705257043760,-602.36,0.0002767,2]
[311590600,1705257043769,-602.36,0.0002767,2]
[311590602,1705257043779,-500.0,0.00027671,2]
[311590604,1705257043788,-500.0,0.00027671,2]
[311590606,1705257043798,-500.0,0.00027671,2]
[311590608,1705257043807,-500.0,0.00027671,2]
[311590610,1705257043817,-500.0,0.00027671,2]
[311590612,1705257043826,-500.0,0.00027671,2]
[311590614,1705257043835,-500.0,0.00027671,2]
[311590615,1705257043844,-417.80270551,0.00027671,2]
[311590617,1705257043853,-500.0,0.00027671,2]
[311590618,1705257043863,-500.83076919,0.00027671,2]
[311590619,1705257043873,-500.0,0.00027671,2]
[311590620,1705257043882,-840.93,0.00027671,2]
[311590621,1705257043891,-500.0,0.00027671,2]
[311590622,1705257043900,-500.0,0.00027671,2]
[311590623,1705257043909,-500.0,0.00027671,2]
[311590624,1705257043918,-924.03,0.00027671,2]
[311590625,1705257043928,-465.32914216,0.00027671,2]
[311590626,1705257043937,-500.0,0.00027671,2]
[311590627,1705257043946,-500.0,0.00027671,2]
[311590628,1705257043957,-500.0,0.00027671,2]
[311590629,1705257043967,-500.0,0.00027671,2]
[311590630,1705257043976,-500.0,0.00027671,2]
[311590631,1705257043985,-500.0,0.00027671,2]
[311590632,1705257043994,-500.0,0.00027671,2]
[311590633,1705257044003,-500.0,0.00027671,2]
[311590634,1705257044013,-500.0,0.00027671,2]
[311590635,1705257044024,-533.04482438,0.00027671,2]
[311590636,1705257044034,-500.0,0.00027671,2]
[311590637,1705257044043,-755.08,0.00027671,2]
[311590638,1705257044052,-500.0,0.00027671,2]
[311590639,1705257044061,-500.0,0.00027671,2]
[311590640,1705257044071,-500.0,0.00027671,2]
[311590641,1705257044080,-500.0,0.00027671,2]
[311590642,1705257044089,-583.1174725,0.00027671,2]
[311590643,1705257044098,-500.0,0.00027671,2]
[311590644,1705257044108,-501.81667094,0.00027671,2]
[311590645,1705257044117,-500.0,0.00027671,2]
[311590646,1705257044125,-500.0,0.00027671,2]
[311590647,1705257044135,-500.0,0.00027671,2]
[311590648,1705257044144,-500.0,0.00027671,2]
[311590649,1705257044154,-502.05991619,0.00027671,2]
[311590650,1705257044163,-500.0,0.00027671,2]
[311590651,1705257044172,-500.0,0.00027671,2]
[311590652,1705257044181,-1000.0,0.00027671,2]
[311590653,1705257044190,-500.0,0.00027671,2]
[311590654,1705257044203,-500.0,0.00027671,2]
[311590655,1705257044212,-1054.08,0.00027671,2]
[311590656,1705257044222,-500.0,0.00027671,2]
[311590657,1705257044231,-261.02864836,0.00027671,2]
[311590658,1705257044240,-461.79230373,0.00027671,2]
[311590659,1705257044250,-500.0,0.00027671,2]
[311590660,1705257044260,-500.0,0.00027671,2]
[311590661,1705257044269,-500.0,0.00027671,2]
[311590662,1705257044279,-500.0,0.00027671,2]
[311590663,1705257044292,-523.95040652,0.00027671,2]
[311590664,1705257044302,-500.0,0.00027671,2]
[311590665,1705257044312,-500.0,0.00027671,2]
[311590666,1705257044322,-500.0,0.00027671,2]
[311590667,1705257044333,-513.83673442,0.00027671,2]
[311590668,1705257044343,-500.0,0.00027671,2]
[311590669,1705257044353,-559.77477571,0.00027671,2]
[311590670,1705257044363,-2988.16,0.00027671,2]
[311590671,1705257044373,-500.0,0.00027671,2]
[311590672,1705257044382,-500.0,0.00027671,2]
[311590673,1705257044392,-500.0,0.00027671,2]
[311590674,1705257044402,-500.0,0.00027671,2]
[311590675,1705257044411,-1543.69,0.00027671,2]
[311590676,1705257044420,-500.0,0.00027671,2]
[311590677,1705257044430,-324.19753497,0.00027671,2]
[311590678,1705257044439,-833.53,0.00027671,2]
[311590679,1705257044452,-500.0,0.00027671,2]
[311590680,1705257044464,-500.0,0.00027671,2]
[311590681,1705257044474,-500.0,0.00027671,2]
[311590682,1705257044557,-500.0,0.00027671,2]
[311590683,1705257044566,-500.0,0.00027671,2]
[311590684,1705257044576,-500.0,0.00027671,2]
[311590685,1705257044585,-675.59,0.00027671,2]
[311590686,1705257044594,-500.0,0.00027671,2]
[311590687,1705257044603,-500.0,0.00027671,2]
[311590688,1705257044612,-1726.25,0.00027671,2]
[311590689,1705257044621,-500.0,0.00027671,2]
[311590690,1705257044631,-540.77,0.00027671,2]
[311590691,1705257044640,-506.34318493,0.00027671,2]
[311590692,1705257044649,-425.14723774,0.00027671,2]
[311590693,1705257044660,-320.69085197,0.00027671,2]
[311590694,1705257044669,-515.51,0.00027671,2]
[311590695,1705257044678,-500.0,0.00027671,2]
[311590696,1705257044687,-500.0,0.00027671,2]
[311590697,1705257044697,-500.0,0.00027671,2]
[311590698,1705257044710,-1043.64,0.00027671,2]
[311590699,1705257044719,-500.0,0.00027671,2]
[311590700,1705257044728,-500.0,0.00027671,2]
[311590701,1705257044737,-520.27,0.00027671,2]
[311590702,1705257044746,-569.53502603,0.00027671,2]
[311590703,1705257044755,-500.0,0.00027671,2]
[311590704,1705257044765,-500.0,0.00027671,2]
[311590705,1705257044774,-500.0,0.00027671,2]
[311590706,1705257044783,-503.3309175,0.00027671,2]
[311590707,1705257044792,-1075.43,0.00027671,2]
[311590708,1705257044801,-1508.57,0.00027671,2]
[311590709,1705257044811,-500.0,0.00027671,2]
[311590710,1705257044821,-500.0,0.00027671,2]
[311590711,1705257044831,-500.0,0.00027671,2]
[311590712,1705257044840,-500.0,0.00027671,2]
[311590713,1705257044850,-500.0,0.00027671,2]
[311590714,1705257044860,-500.0,0.00027671,2]
[311590715,1705257044869,-500.0,0.00027671,2]
[311590716,1705257044878,-500.0,0.00027671,2]
[311590717,1705257044887,-500.0,0.00027671,2]
[311590718,1705257044896,-955.08,0.00027671,2]
[311590719,1705257044906,-500.0,0.00027671,2]
[311590720,1705257044915,-500.0,0.00027671,2]
[311590721,1705257044925,-507.54117207,0.00027671,2]
[311590722,1705257044934,-500.0,0.00027671,2]
[311590723,1705257044943,-500.0,0.00027671,2]
[311590724,1705257044956,-500.0,0.00027671,2]
[311590725,1705257044965,-649.01,0.00027671,2]
[311590726,1705257044974,-500.0,0.00027671,2]
[311590727,1705257044983,-500.0,0.00027671,2]
[311590728,1705257044992,-507.71507767,0.00027671,2]
[311590729,1705257045001,-500.0,0.00027671,2]
[311590730,1705257045010,-500.0,0.00027671,2]
[311590731,1705257045019,-521.137917,0.00027671,2]
[311590732,1705257045028,-465.78510027,0.00027671,2]
[311590733,1705257045038,-500.0,0.00027671,2]
[311590734,1705257045047,-3487.97,0.00027671,2]
[311590735,1705257045056,-500.0,0.00027671,2]
[311590736,1705257045066,-500.0,0.00027671,2]
[311590737,1705257045076,-699.2,0.00027671,2]
[311590738,1705257045085,-500.0,0.00027671,2]
[311590739,1705257045093,-500.0,0.00027671,2]
[311590740,1705257045102,-500.0,0.00027671,2]
[311590741,1705257045112,-500.0,0.00027671,2]
[311590742,1705257045121,-500.0,0.00027671,2]
[311590743,1705257045131,-500.0,0.00027671,2]
[311590744,1705257045140,-454.73107322,0.00027671,2]
[311590745,1705257045149,-2921.82,0.00027671,2]
[311590746,1705257045159,-1479.7,0.00027671,2]
[311590747,1705257045169,-1676.05,0.00027671,2]
[311590748,1705257045178,-553.3,0.00027671,2]
[311590749,1705257045186,-500.0,0.00027671,2]
[311590750,1705257045196,-592.07,0.00027671,2]
[311590751,1705257045208,-500.0,0.00027671,2]
[311590752,1705257045218,-8636.67,0.00027671,2]
[311590753,1705257045227,-500.0,0.00027671,2]
[311590754,1705257045236,-11593.8,0.00027671,2]
[311590755,1705257045245,-500.0,0.00027671,2]
[311590756,1705257045254,-500.0,0.00027671,2]
[311590757,1705257045264,-381.12520122,0.00027671,2]
[311590758,1705257045273,-580.85,0.00027671,2]
[311590759,1705257045282,-4870.93,0.00027671,2]
[311590760,1705257045293,-286.77903007,0.00027671,2]
[311590761,1705257045303,-500.0,0.00027671,2]
[311590762,1705257045312,-623.37,0.00027671,2]
[311590763,1705257045322,-500.0,0.00027671,2]
[311590764,1705257045334,-1689.66,0.00027671,2]
[311590765,1705257045343,-500.0,0.00027671,2]
[311590766,1705257045353,-362.72743992,0.00027671,2]
[311590767,1705257045362,-512.66668564,0.00027671,2]
[311590768,1705257045371,-1901.24,0.00027671,2]
[311590769,1705257045380,-3601.02,0.00027671,2]
[311590770,1705257045389,-500.0,0.00027671,2]
[311590771,1705257045398,-886.7,0.00027671,2]
[311590772,1705257045407,-500.0,0.00027671,2]
[311590773,1705257045416,-630.42,0.00027671,2]
[311590774,1705257045426,-500.0,0.00027671,2]
[311590775,1705257045435,-500.0,0.00027671,2]
[311590776,1705257045444,-597.93975768,0.00027671,2]
[311590777,1705257045456,-7395.6,0.00027671,2]
[311590778,1705257045466,-500.0,0.00027671,2]
[311590779,1705257045475,-500.0,0.00027671,2]
[311590780,1705257045484,-33592.72,0.00027671,2]
[311590781,1705257045494,-500.0,0.00027671,2]
[311590782,1705257045503,-500.0,0.00027671,2]
[311590783,1705257045512,-500.0,0.00027671,2]
[311590784,1705257045522,-529.37,0.00027671,2]
[311590786,1705257045532,-585.23,0.00027671,2]
[311590788,1705257045541,-154.85090275,0.00027671,2]
[311590790,1705257045549,-500.0,0.00027671,2]
[311590792,1705257045558,-500.0,0.00027671,2]
[311590794,1705257045568,-500.0,0.00027671,2]
[311590796,1705257045577,-573.57,0.00027671,2]
[311590798,1705257045586,-500.0,0.00027671,2]
[311590800,1705257045595,-1114.58,0.00027671,2]
[311590802,1705257045604,-500.0,0.00027671,2]
[311590804,1705257045614,-500.0,0.00027671,2]
[311590806,1705257045623,-582.39607018,0.00027671,2]
[311590808,1705257045632,-18863.53,0.00027671,2]
[311590809,1705257045642,-500.0,0.00027671,2]
[311590810,1705257045652,-2203.22,0.00027671,2]
[311590812,1705257045661,-500.0,0.00027671,2]
[311590813,1705257045670,-500.0,0.00027671,2]
[311590815,1705257045680,-500.0,0.00027671,2]
[311590817,1705257045689,-500.0,0.00027671,2]
[311590819,1705257045698,-500.0,0.00027671,2]
[311590821,1705257045708,-500.0,0.00027671,2]
[311590822,1705257045718,-500.0,0.00027671,2]
[311590823,1705257045727,-1209.28,0.00027671,2]
[311590824,1705257045737,-500.0,0.00027671,2]
[311590825,1705257045746,-500.0,0.00027671,2]
[311590826,1705257045755,-500.0,0.00027671,2]
[311590827,1705257045765,-1687.72,0.00027671,2]
[311590828,1705257045775,-504.46,0.00027671,2]
[311590829,1705257045784,-500.0,0.00027671,2]
[311590830,1705257045793,-500.0,0.00027671,2]
[311590832,1705257045803,-376.85988352,0.00027671,2]
[311590834,1705257045812,-500.0,0.00027671,2]
[311590836,1705257045821,-500.0,0.00027671,2]
[311590837,1705257045830,-901.66,0.00027671,2]
[311590838,1705257045839,-8006.49,0.00027671,2]
[311590839,1705257045848,-500.0,0.00027671,2]
[311590840,1705257045858,-615.79197859,0.00027671,2]
[311590841,1705257045867,-839.57,0.00027671,2]
[311590842,1705257045876,-500.0,0.00027671,2]
[311590843,1705257045885,-1000.0,0.00027671,2]
[311590844,1705257045895,-500.0,0.00027671,2]
[311590845,1705257045904,-387.36439512,0.00027671,2]
[311590846,1705257045913,-500.0,0.00027671,2]
[311590848,1705257045922,-500.0,0.00027671,2]
[311590850,1705257045931,-500.0,0.00027671,2]
[311590851,1705257045940,-230.2463212,0.00027671,2]
[311590852,1705257045950,-500.0,0.00027671,2]
[311590853,1705257045962,-1411.01,0.00027671,2]
[311590854,1705257045971,-500.0,0.00027671,2]
[311590855,1705257045980,-500.0,0.00027671,2]
[311590856,1705257045989,-428.3872351,0.00027671,2]
[311590857,1705257045998,-1828.08,0.00027671,2]
[311590858,1705257046007,-500.0,0.00027671,2]
[311590859,1705257046016,-500.0,0.00027671,2]
[311590860,1705257046025,-597.80011119,0.00027671,2]
[311590861,1705257046034,-500.0,0.00027671,2]
[311590862,1705257046043,-357.61194086,0.00027671,2]
[311590863,1705257046052,-1201.24,0.00027671,2]
[311590864,1705257046061,-500.0,0.00027671,2]
[311590865,1705257046071,-500.0,0.00027671,2]
[311590866,1705257046080,-500.0,0.00027671,2]
[311590867,1705257046089,-500.0,0.00027671,2]
[311590868,1705257046098,-500.0,0.00027671,2]
[311590869,1705257046107,-500.0,0.00027671,2]
[311590870,1705257046116,-179.21979066,0.00027944,4]
[311590871,1705257046125,-454.87027619,0.00027944,4]
[311590872,1705257046135,-602.36,0.00027944,2]
[311590874,1705257046144,-602.36,0.00027944,2]
[311590876,1705257046153,-602.36,0.00027944,2]
[311590877,1705257046162,-504.19080815,0.00027945,2]
[311590878,1705257046171,-500.0,0.00027945,2]
[311590879,1705257046180,-500.0,0.00027945,2]
[311590880,1705257046190,-500.0,0.00027945,2]
[311590881,1705257046201,-500.0,0.00027945,2]
[311590882,1705257046211,-500.0,0.00027945,2]
[311590883,1705257046292,-500.0,0.00027945,2]
[311590884,1705257046302,-500.0,0.00027945,2]
[311590885,1705257046311,-500.0,0.00027945,2]
[311590886,1705257046320,-840.93,0.00027945,2]
[311590887,1705257046332,-500.0,0.00027945,2]
[311590888,1705257046341,-500.0,0.00027945,2]
[311590890,1705257046350,-924.03,0.00027945,2]
[311590891,1705257046361,-500.0,0.00027945,2]
[311590893,1705257046371,-500.0,0.00027945,2]
[311590895,1705257046381,-465.32110665,0.00027945,2]
[311590897,1705257046391,-232.5828535,0.00027945,2]
[311590899,1705257046402,-500.0,0.00027945,2]
[311590900,1705257046413,-500.0,0.00027945,2]
[311590901,1705257046422,-500.0,0.00027945,2]
[311590902,1705257046431,-521.1942348,0.00027945,2]
[311590903,1705257046440,-247.37652584,0.00027945,2]
[311590904,1705257046451,-755.08,0.00027945,2]
[311590905,1705257046459,-500.0,0.00027945,2]
[311590906,1705257046468,-500.0,0.00027945,2]
[311590907,1705257046477,-500.0,0.00027945,2]
[311590908,1705257046486,-500.0,0.00027945,2]
[311590909,1705257046494,-500.0,0.00027945,2]
[311590910,1705257046503,-500.0,0.00027945,2]
[311590911,1705257046512,-500.0,0.00027945,2]
[311590912,1705257046522,-500.0,0.00027945,2]
[311590913,1705257046531,-500.0,0.00027945,2]
[311590914,1705257046540,-500.0,0.00027945,2]
[311590915,1705257046549,-1000.0,0.00027945,2]
[311590916,1705257046559,-500.0,0.00027945,2]
[311590917,1705257046568,-302.94543541,0.00027945,2]
[311590918,1705257046577,-1054.08,0.00027945,2]
[311590919,1705257046586,-500.0,0.00027945,2]
[311590920,1705257046595,-500.0,0.00027945,2]
[311590921,1705257046605,-417.05988625,0.00027945,2]
[311590922,1705257046614,-500.0,0.00027945,2]
[311590923,1705257046623,-500.0,0.00027945,2]
[311590924,1705257046632,-500.0,0.00027945,2]
[311590925,1705257046641,-500.0,0.00027945,2]
[311590926,1705257046650,-500.0,0.00027945,2]
[311590927,1705257046659,-500.0,0.00027945,2]
[311590928,1705257046669,-2988.16,0.00027945,2]
[311590929,1705257046678,-509.48319526,0.00027945,2]
[311590930,1705257046687,-404.20160165,0.00027945,2]
[311590931,1705257046697,-500.0,0.00027945,2]
[311590932,1705257046707,-500.0,0.00027945,2]
[311590933,1705257046716,-1543.69,0.00027945,2]
[311590934,1705257046725,-500.0,0.00027945,2]
[311590935,1705257046735,-833.53,0.00027945,2]
[311590936,1705257046744,-500.0,0.00027945,2]
[311590937,1705257046753,-500.0,0.00027945,2]
[311590938,1705257046762,-500.0,0.00027945,2]
[311590939,1705257046771,-500.0,0.00027945,2]
[311590940,1705257046780,-500.0,0.00027945,2]
[311590941,1705257046790,-500.0,0.00027945,2]
[311590942,1705257046799,-675.59,0.00027945,2]
[311590943,1705257046808,-500.0,0.00027945,2]
[311590944,1705257046818,-500.0,0.00027945,2]
[311590945,1705257046827,-1726.25,0.00027945,2]
[311590946,1705257046837,-500.0,0.00027945,2]
[311590947,1705257046846,-540.77,0.00027945,2]
[311590948,1705257046854,-515.51,0.00027945,2]
[311590949,1705257046863,-500.0,0.00027945,2]
[311590950,1705257046872,-500.0,0.00027945,2]
[311590951,1705257046882,-500.0,0.00027945,2]
[311590952,1705257046891,-1043.64,0.00027945,2]
[311590953,1705257046900,-500.0,0.00027945,2]
[311590954,1705257046910,-619.09681012,0.00027945,2]
[311590955,1705257046919,-520.27,0.00027945,2]
[311590956,1705257046929,-500.0,0.00027945,2]
[311590957,1705257046938,-500.0,0.00027945,2]
[311590958,1705257046948,-317.23703066,0.00027945,2]
[311590959,1705257046958,-1075.43,0.00027945,2]
[311590960,1705257046967,-1508.57,0.00027945,2]
[311590961,1705257046977,-500.0,0.00027945,2]
[311590962,1705257046986,-500.0,0.00027945,2]
[311590963,1705257046995,-500.0,0.00027945,2]
[311590964,1705257047005,-500.0,0.00027945,2]
[311590965,1705257047014,-500.0,0.00027945,2]
[311590966,1705257047024,-551.07284449,0.00027945,2]
[311590967,1705257047043,-545.31632648,0.00027945,2]
[311590968,1705257047053,-500.0,0.00027945,2]
[311590969,1705257047062,-500.0,0.00027945,2]
[311590970,1705257047071,-955.08,0.00027945,2]
[311590971,1705257047080,-500.0,0.00027945,2]
[311590972,1705257047090,-500.0,0.00027945,2]
[311590973,1705257047100,-500.0,0.00027945,2]
[311590974,1705257047109,-500.0,0.00027945,2]
[311590975,1705257047118,-500.0,0.00027945,2]
[311590976,1705257047127,-649.01,0.00027945,2]
[311590977,1705257047137,-500.0,0.00027945,2]
[311590978,1705257047147,-167.07286369,0.00027945,2]
[311590979,1705257047156,-500.0,0.00027945,2]
[311590980,1705257047166,-398.43963782,0.00027945,2]
[311590981,1705257047175,-502.73231423,0.00027945,2]